bitfinex/quotes_SOLUSD_20250204
["timestamp","ask_amount","ask_price","bid_price","bid_amount"]
[1738627200432,0.03,216.27,216.17,0.063]
[1738627201319,9.02550618,216.23,216.17,0.063]
[1738627203605,9.02550618,216.25,216.17,0.063]
[1738627203806,0.86734464,216.24,216.17,0.063]
[1738627204016,9.02550618,216.23,216.17,0.063]
[1738627204202,9.02550618,216.25,216.17,0.063]
[1738627204409,0.89716188,216.27,216.17,0.063]
[1738627204708,0.03,216.27,216.17,95.27484853]
[1738627204912,0.03,216.27,216.18,0.34468343]
[1738627205089,0.03,216.27,216.19,13.41184853]
[1738627205285,0.03,216.27,216.2,0.34443674]
[1738627205513,0.03,216.27,216.21,8.0852]
[1738627205693,0.03,216.27,216.22,13.75586168]
[1738627205895,0.03,216.27,216.22,95.55586168]
[1738627206410,0.03,216.27,216.22,96.5558051]
[1738627206941,0.03,216.27,216.22,13.41184853]
[1738627207728,9.02550618,216.25,216.17,0.063]
[1738627208031,9.02550618,216.21,216.17,0.063]
[1738627208199,9.02550618,216.25,216.17,0.063]
[1738627208600,0.03,216.27,216.17,0.063]
[1738627208794,0.03,216.27,216.17,14.47479195]
[1738627208998,0.03,216.27,216.2,13.41184853]
[1738627209802,9.92259827,216.27,216.2,13.41184853]
[1738627210119,9.02550618,216.21,216.19,7.23814198]
[1738627211014,0.8674667,216.2,216.19,7.23814198]
[1738627211199,0.03,216.27,216.17,14.53928396]
[1738627211200,9.05550618,216.27,216.17,0.063]
[1738627211394,0.03,216.27,216.17,0.063]
[1738627211793,9.02550618,216.24,216.17,0.063]
[1738627212002,9.02550618,216.22,216.17,0.063]
[1738627212207,9.02550618,216.18,216.17,0.063]
[1738627212801,10.89324443,216.18,216.17,0.063]
[1738627213422,9.89324443,216.18,216.17,0.063]
[1738627214004,10.89324443,216.18,216.17,0.063]
[1738627214509,14.75324443,216.18,216.17,0.063]
[1738627214708,19.84249112,216.18,216.17,0.063]
[1738627215228,1.0,216.16,216.14,0.063]
[1738627215413,14.98254348,216.15,216.14,0.063]
[1738627216123,14.98254348,216.15,216.02,13.44184853]
[1738627216303,14.11475287,216.11,216.02,13.44184853]
[1738627216926,14.11475287,216.15,216.02,13.44184853]
[1738627217416,14.11475287,216.15,216.02,0.03]
[1738627218932,14.11475287,216.13,216.02,0.03]
[1738627219118,14.11475287,216.1,216.02,0.03]
[1738627219517,14.9826032,216.14,216.02,0.03]
[1738627219723,14.11475287,216.14,216.04,13.41184853]
[1738627219927,14.11475287,216.16,216.04,13.41184853]
[1738627220110,0.86768969,216.15,216.04,13.41184853]
[1738627220310,14.11475287,216.14,216.04,13.41184853]
[1738627220734,14.11475287,216.16,216.04,13.41184853]
[1738627220939,14.98240301,216.16,216.04,13.41184853]
[1738627221836,14.11475287,216.16,216.04,13.41184853]
[1738627223237,16.56747196,216.21,216.04,13.41184853]
[1738627223441,14.11475287,216.15,216.04,81.8]
[1738627224141,14.11475287,216.15,216.05,13.41184853]
[1738627224325,0.86767995,216.14,216.05,13.41184853]
[1738627224526,14.11475287,216.15,216.05,13.41184853]
[1738627224927,14.11475287,216.13,216.05,13.41184853]
[1738627225137,0.86775876,216.12,216.05,13.41184853]
[1738627225641,14.11475287,216.13,216.05,13.41184853]
[1738627226135,2.5376,216.17,216.03,1.5267]
[1738627226136,14.11475287,216.11,216.03,1.5267]
[1738627227532,14.11475287,216.11,216.04,0.063]
[1738627229521,14.11475287,216.06,216.04,0.063]
[1738627230040,0.8680517,216.05,216.04,0.063]
[1738627230239,14.11475287,216.06,216.04,0.063]
[1738627230430,14.98282908,216.08,216.04,0.063]
[1738627230824,3.86,216.09,216.04,0.063]
[1738627231423,4.6279,216.08,216.04,0.063]
[1738627231623,14.11475287,216.06,216.04,0.063]
[1738627231830,0.86808476,216.05,216.04,0.063]
[1738627232321,14.98281925,216.06,216.04,0.063]
[1738627233248,4.6285,216.05,216.04,0.063]
[1738627234126,18.74325287,216.05,216.04,0.063]
[1738627235559,4.6285,216.05,216.04,0.063]
[1738627235734,4.6279,216.08,216.04,0.063]
[1738627237035,4.6277,216.09,216.04,0.063]
[1738627238142,9.03597409,216.06,216.04,0.063]
[1738627238349,0.86812047,216.05,216.04,0.063]
[1738627238668,30.69408519,216.05,216.02,0.03]
[1738627238972,14.12753236,216.03,216.02,0.0001]
[1738627239259,14.99595834,216.03,216.02,0.0001]
[1738627240368,34.03670687,216.03,216.02,0.0001]
[1738627240972,1.0,215.97,215.95,0.0001]
[1738627241269,14.99605341,215.96,215.95,0.0001]
[1738627242278,19.62645341,215.96,215.95,0.0001]
[1738627242579,4.6301,215.98,215.95,0.0001]
[1738627242880,5.49847967,215.98,215.95,0.0001]
[1738627244667,14.12753236,215.96,215.95,0.0001]
[1738627244864,14.99613877,215.96,215.95,0.0001]
[1738627246382,16.17273659,215.96,215.95,0.0001]
[1738627246779,20.80313659,215.96,215.95,0.0001]
[1738627247779,19.62653877,215.96,215.95,0.0001]
[1738627247977,4.6304,215.96,215.95,0.0001]
[1738627249690,0.86845038,215.99,215.95,0.0001]
[1738627249857,4.6294,216.01,215.95,0.0001]
[1738627250573,0.86845038,216.02,215.95,0.0001]
[1738627250762,0.86823487,216.04,215.95,13.41194853]
[1738627251083,5.49703487,216.04,215.95,13.41194853]
[1738627251883,0.03,215.96,215.95,13.41194853]
[1738627252083,0.03,215.96,215.95,18.04264853]
[1738627254379,3.84,216.09,215.99,13.41184853]
[1738627254684,4.6275,216.1,215.99,13.41184853]
[1738627254988,4.6275,216.1,216.03,13.41184853]
[1738627256965,14.12753236,216.04,215.95,1.6502]
[1738627257164,14.12753236,216.04,215.97,13.41184853]
[1738627258092,18.75633236,216.04,215.97,13.41184853]
[1738627258272,14.12753236,216.02,215.95,1.6502]
[1738627258473,0.86823145,216.01,215.95,0.0001]
[1738627258969,4.6288,216.04,215.95,0.0001]
[1738627258970,0.86823214,216.03,215.95,0.0001]
[1738627259169,18.75633236,216.04,215.95,0.0001]
[1738627259485,4.6285,216.06,215.95,18.04254853]
[1738627259688,19.62350928,216.08,215.99,13.41184853]
[1738627259875,18.75553236,216.08,215.99,13.41184853]
[1738627260081,18.75553236,216.08,215.99,18.04154853]
[1738627260397,14.12753236,216.06,215.98,20.0]
[1738627260624,4.628,216.08,215.97,13.41184853]
[1738627260625,14.12753236,216.04,215.97,13.41184853]
[1738627260813,14.12753236,216.02,215.95,0.0001]
[1738627261304,14.12753236,216.0,215.95,0.0001]
[1738627261860,18.75723236,216.0,215.95,0.0001]
[1738627262969,14.12753236,215.98,215.88,0.15]
[1738627263161,7.8159,215.84,215.82,0.063]
[1738627263364,1.0,215.81,215.74,18.523642]
[1738627263680,14.12753236,215.76,215.72,14.47628396]
[1738627263860,21.77373236,215.74,215.72,14.47628396]
[1738627264066,1.0,215.71,215.61,0.03]
[1738627264285,18.83710756,215.7,215.61,0.03]
[1738627264516,4.7095752,215.7,215.61,0.03]
[1738627264720,27.3893462,215.7,215.61,0.03]
[1738627265332,3.84,215.7,215.61,0.03]
[1738627266333,1.5118,215.73,215.61,0.03]
[1738627266334,0.8694634,215.73,215.63,13.41184853]
[1738627266517,0.8693477,215.76,215.65,4.6369]
[1738627266833,0.8693477,215.76,215.69,13.44184853]
[1738627267038,0.86927416,215.77,215.69,13.44184853]
[1738627267423,0.86913431,215.83,215.69,13.44184853]
[1738627267599,0.86913431,215.8,215.69,13.44184853]
[1738627268233,0.86909708,215.81,215.7,13.41184853]
[1738627268429,0.86909708,215.81,215.73,20.0]
[1738627269231,0.86905987,215.83,215.73,20.0]
[1738627269933,113.4130079,215.82,215.73,20.0]
[1738627270140,113.4130079,215.82,215.74,13.41184853]
[1738627270337,113.4130079,215.82,215.77,20.0]
[1738627270536,113.4130079,215.82,215.78,13.41184853]
[1738627271139,113.4130079,215.81,215.77,20.0]
[1738627271322,113.4130079,215.81,215.74,13.41184853]
[1738627271633,9.45108399,215.8,215.74,13.41184853]
[1738627271835,9.45108399,215.8,215.74,73.71304982]
[1738627272043,9.45108399,215.8,215.74,80.24044982]
[1738627272333,9.45108399,215.8,215.69,0.03]
[1738627272334,1.0,215.7,215.69,0.03]
[1738627272538,37.96135906,215.7,215.69,0.03]
[1738627272752,14.41184853,215.63,215.61,0.03]
[1738627272921,37.96158234,215.63,215.61,0.03]
[1738627273120,1.0,215.56,215.55,0.03]
[1738627273510,1.87011993,215.56,215.55,0.03]
[1738627274120,24.54989093,215.56,215.55,0.03]
[1738627275137,37.96173946,215.56,215.55,0.03]
[1738627277816,24.54989093,215.56,215.55,0.03]
[1738627278851,38.96173946,215.56,215.55,0.03]
[1738627279008,38.96173946,215.56,215.5,0.0001]
[1738627279009,2.0,215.51,215.5,0.0001]
[1738627279210,62.80206294,215.51,215.5,0.0001]
[1738627279410,67.44216294,215.51,215.5,0.0001]
[1738627279825,61.80206294,215.51,215.5,0.0001]
[1738627280221,5.71044341,215.51,215.5,0.0001]
[1738627280629,4.84,215.51,215.5,0.0001]
[1738627281031,3.84,215.51,215.5,0.0001]
[1738627281210,1.0,215.53,215.5,0.0001]
[1738627281411,1.0,215.55,215.5,0.0001]
[1738627281957,1.0,215.57,215.5,0.0001]
[1738627282321,1.0,215.52,215.5,0.0001]
[1738627283048,0.870158,215.51,215.5,0.0001]
[1738627283635,1.0,215.52,215.5,0.0001]
[1738627284716,1.87018874,215.52,215.5,0.0001]
[1738627285941,36.89713951,215.51,215.5,0.0001]
[1738627286719,1.87018874,215.52,215.5,0.0001]
[1738627287125,36.89713951,215.51,215.5,0.0001]
[1738627287856,0.87024146,215.51,215.5,0.0001]
[1738627290345,1.0,215.52,215.5,0.0001]
[1738627292460,37.76737974,215.51,215.5,0.0001]
[1738627292829,51.17922827,215.51,215.5,0.0001]
[1738627293757,37.76737974,215.51,215.5,0.0001]
[1738627294056,0.87024023,215.51,215.5,0.0001]
[1738627294747,1.87024952,215.52,215.5,0.0001]
[1738627294950,1.0,215.52,215.5,0.0001]
[1738627295281,1.0,215.56,215.5,0.0001]
[1738627295453,1.0,215.58,215.5,0.0001]
[1738627296278,1.0,215.58,215.5,4.6404]
[1738627296581,1.0,215.55,215.5,4.6404]
[1738627296788,1.0,215.57,215.5,4.6404]
[1738627297386,1.0,215.51,215.5,0.0001]
[1738627297585,37.89713951,215.51,215.5,0.0001]
[1738627299578,38.76749137,215.51,215.5,0.0001]
[1738627300056,37.89713951,215.51,215.5,0.0001]
[1738627300258,1.0,215.51,215.5,0.0001]
[1738627300686,21.0,215.51,215.5,0.0001]
[1738627300985,58.76735592,215.51,215.5,0.0001]
[1738627301161,117.12154396,215.51,215.5,0.0001]
[1738627301363,120.09132755,215.51,215.5,0.0001]
[1738627301676,121.09132755,215.51,215.5,0.0001]
[1738627302090,84.19418804,215.51,215.5,0.0001]
[1738627302396,70.65284981,215.51,215.5,0.0001]
[1738627303971,1.0,215.46,215.37,33.41184853]
[1738627304217,1.0,215.44,215.36,36.2517]
[1738627305598,37.89713951,215.44,215.36,4.6433]
[1738627305808,36.89713951,215.49,215.36,4.6433]
[1738627305809,1.0,215.38,215.36,4.6433]
[1738627307008,1.0,215.4,215.34,4.6438]
[1738627307311,1.0,215.43,215.34,4.6438]
[1738627308092,1.0,215.42,215.34,4.6438]
[1738627308478,1.0,215.4,215.34,4.6438]
[1738627308674,1.0,215.44,215.37,20.0]
[1738627309078,0.87041159,215.43,215.34,4.6438]
[1738627309303,1.0,215.39,215.34,4.6438]
[1738627309816,1.0,215.36,215.34,4.6438]
[1738627310015,1.0,215.38,215.34,4.6438]
[1738627310388,1.0,215.38,215.33,20.0]
[1738627310591,1.0,215.38,215.33,4.644]
[1738627310805,1.0,215.41,215.33,16.254]
[1738627310999,1.0,215.42,215.33,16.254]
[1738627311494,1.0,215.42,215.33,4.644]
[1738627311700,1.0,215.36,215.33,4.644]
[1738627311901,1.0,215.36,215.34,0.063]
[1738627313002,1.0,215.35,215.34,0.063]
[1738627313911,1.87103394,215.35,215.34,0.063]
[1738627314999,1.77103394,215.35,215.34,0.063]
[1738627316495,0.9,215.35,215.34,0.063]
[1738627317287,10.33222098,215.35,215.34,0.063]
[1738627317487,10.33222098,215.35,215.24,4.17289209]
[1738627317797,0.9,215.33,215.24,4.17289209]
[1738627318096,0.9,215.33,215.23,13.41184853]
[1738627318304,1.77092819,215.35,215.23,13.41184853]
[1738627318505,0.9,215.35,215.23,13.41184853]
[1738627318701,0.87091138,215.34,215.22,23.2319]
[1738627318885,0.87091138,215.34,215.24,11.6146]
[1738627319091,1.77094106,215.35,215.24,11.6146]
[1738627319809,0.9,215.35,215.24,11.6146]
[1738627320112,0.9,215.29,215.24,11.6146]
[1738627320521,0.9,215.33,215.24,11.6146]
[1738627320695,0.9,215.35,215.24,11.6146]
[1738627320898,0.8709336,215.36,215.24,11.6146]
[1738627321097,13.47629464,215.37,215.24,11.6146]
[1738627321098,13.47629464,215.37,215.27,20.0]
[1738627321412,9.464e-05,215.37,215.32,1.5176]
[1738627321789,9.464e-05,215.37,215.36,33.41184853]
[1738627322198,3.936e-05,215.39,215.37,13.41184853]
[1738627322596,26.44456656,215.43,215.41,13.41184853]
[1738627322900,6.656e-05,215.43,215.41,13.41184853]
[1738627323626,6.656e-05,215.43,215.41,14.51184853]
[1738627323798,6.656e-05,215.43,215.4,6.48642681]
[1738627323799,6.656e-05,215.48,215.46,20.0]
[1738627324003,6.62830317,215.5,215.46,22.1626333]
[1738627324216,3.215e-05,215.53,215.49,33.41184853]
[1738627324517,3.0901,215.58,215.53,20.0]
[1738627325214,3.0901,215.58,215.53,21.0]
[1738627325390,0.0001,215.58,215.57,20.0]
[1738627325714,0.03,215.61,215.57,20.0]
[1738627325897,0.03,215.61,215.56,20.0]
[1738627326402,0.03,215.61,215.57,4.6388]
[1738627327120,0.03,215.61,215.57,24.6388]
[1738627328638,0.03,215.61,215.6,33.41184853]
[1738627329514,0.03,215.7,215.64,20.0]
[1738627329720,0.03,215.7,215.68,20.0]
[1738627330714,0.03,215.7,215.69,4.6362]
[1738627332320,0.03,215.7,215.64,4.6372]
[1738627332321,0.9,215.68,215.64,4.6372]
[1738627332621,0.9,215.65,215.53,4.6397]
[1738627332837,38.76294744,215.7,215.64,20.0]
[1738627333012,0.93,215.7,215.61,13.41184853]
[1738627333322,0.9,215.68,215.62,20.0]
[1738627333707,0.93,215.7,215.62,20.0]
[1738627334095,0.9,215.68,215.63,4.6375]
[1738627334292,37.89334439,215.7,215.62,20.0]
[1738627334521,0.9,215.67,215.6,4.6382]
[1738627334720,0.9,215.69,215.6,4.6382]
[1738627334925,0.03,215.7,215.64,20.0]
[1738627335323,0.03,215.7,215.63,20.0]
[1738627335496,0.03,215.7,215.64,13.41184853]
[1738627336307,0.03,215.7,215.69,20.0]
[1738627337041,0.03,215.77,215.69,20.0]
[1738627337927,0.03,215.77,215.73,20.0]
[1738627338429,0.03,215.77,215.74,4.6352]
[1738627338613,0.03,215.77,215.73,20.0]
[1738627338799,0.03,215.77,215.73,24.6352]
[1738627340308,0.03,215.77,215.71,4.6357]
[1738627340516,0.9,215.72,215.63,1.5068]
[1738627340917,0.9,215.72,215.64,13.41184853]
[1738627341306,36.96334439,215.75,215.67,20.0]
[1738627341515,36.96334439,215.75,215.67,24.6366]
[1738627341730,36.99334439,215.77,215.67,24.6366]
[1738627342030,0.03,215.77,215.67,24.6366]
[1738627342427,0.03,215.77,215.68,20.0]
[1738627342630,36.96334439,215.73,215.68,20.0]
[1738627343008,36.96334439,215.73,215.64,13.41184853]
[1738627343241,0.86928175,215.76,215.56,4.639]
[1738627343242,36.96334439,215.65,215.56,4.639]
[1738627343525,36.96334439,215.63,215.5,31.40595605]
[1738627343729,36.96334439,215.61,215.51,4.6401]
[1738627343946,36.96334439,215.59,215.51,4.6401]
[1738627344137,36.96334439,215.59,215.53,20.0]
[1738627344308,36.96334439,215.61,215.53,20.0]
[1738627345136,36.96334439,215.63,215.53,20.0]
[1738627345316,36.96334439,215.63,215.54,13.41184853]
[1738627345726,36.96334439,215.65,215.55,4.6392]
[1738627346303,0.86972246,215.67,215.56,21.45934853]
[1738627346509,0.03,215.77,215.61,21.0]
[1738627346733,0.03,215.77,215.7,20.0]
[1738627347048,0.03,215.77,215.74,20.0]
[1738627347812,0.03,215.77,215.74,24.635]
[1738627348115,0.03,215.77,215.7,20.0]
[1738627348525,0.03,215.77,215.71,20.0]
[1738627349727,0.03,215.77,215.72,4.6356]
[1738627350625,36.96334439,215.76,215.65,4.6371]
[1738627350818,36.96334439,215.74,215.65,4.6371]
[1738627351508,36.96334439,215.74,215.66,20.0]
[1738627351708,36.96334439,215.72,215.66,20.0]
[1738627351938,36.96334439,215.72,215.65,4.6371]
[1738627352233,36.96334439,215.72,215.65,24.6371]
[1738627352426,36.96334439,215.7,215.65,24.6371]
[1738627352623,0.86935674,215.73,215.64,0.063]
[1738627352624,36.96334439,215.68,215.64,0.063]
[1738627353127,36.96334439,215.66,215.64,0.063]
[1738627353432,0.86966528,215.65,215.64,0.063]
[1738627353639,36.96334439,215.66,215.64,0.063]
[1738627354532,37.83300976,215.66,215.64,0.063]
[1738627355547,7.9209,215.7,215.64,0.063]
[1738627355837,6.3999,215.7,215.64,0.063]
[1738627356634,0.86939134,215.74,215.64,0.063]
[1738627356835,36.96334439,215.75,215.64,13.47484853]
[1738627357207,8.2057,215.76,215.64,13.47484853]
[1738627357614,0.03,215.77,215.66,13.41184853]
[1738627357936,0.03,215.77,215.7,13.41184853]
[1738627358139,0.03,215.77,215.68,20.0]
[1738627358347,0.03,215.77,215.69,13.41184853]
[1738627359220,0.03,215.77,215.69,14.41184853]
[1738627359528,0.03,215.77,215.73,13.41184853]
[1738627359716,0.03,215.77,215.74,4.6352]
[1738627360118,0.03,215.83,215.74,4.6352]
[1738627360851,0.03,215.77,215.74,4.6352]
[1738627361016,0.03,215.77,215.73,87.12489835]
[1738627361223,0.03,215.77,215.75,13.41184853]
[1738627361833,0.03,215.77,215.74,4.6352]
[1738627361834,0.03,215.77,215.76,20.0]
[1738627362341,0.03,215.83,215.76,20.0]
[1738627362558,0.03,215.83,215.77,20.0]
[1738627363155,36.96334439,215.8,215.71,4.6358]
[1738627363319,36.96334439,215.8,215.73,20.0]
[1738627363525,17.81934246,215.82,215.73,20.0]
[1738627363730,18.68834543,215.82,215.73,20.0]
[1738627363942,0.86900297,215.81,215.73,20.0]
[1738627364162,0.03,215.83,215.74,20.0]
[1738627364861,0.03,215.83,215.78,20.0]
[1738627365030,0.03,215.83,215.79,13.41184853]
[1738627365220,0.03,215.83,215.8,4.6339]
[1738627365426,0.03,215.83,215.78,24.6341]
[1738627365936,0.03,215.83,215.76,4.6345]
[1738627366132,0.03,215.83,215.77,20.0]
[1738627366949,0.03,215.83,215.77,24.6345]
[1738627368853,0.03,215.83,215.67,2.12549]
[1738627368854,36.96334439,215.79,215.65,1.22340849]
[1738627369068,36.96334439,215.75,215.66,4.6369]
[1738627369242,36.96334439,215.73,215.66,4.6369]
[1738627369648,36.96334439,215.73,215.66,24.6369]
[1738627369949,36.96334439,215.73,215.66,4.6369]
[1738627370472,36.96334439,215.73,215.65,0.063]
[1738627370780,37.83271761,215.73,215.65,20.063]
[1738627370966,37.83268431,215.75,215.65,20.063]
[1738627371143,37.83268431,215.75,215.65,0.063]
[1738627371343,0.86933021,215.78,215.66,13.41184853]
[1738627371562,6.6425,215.79,215.66,13.41184853]
[1738627371872,3.84,215.81,215.66,13.76054]
[1738627372572,1.5809,215.82,215.71,20.0]
[1738627372776,0.03,215.83,215.75,20.0]
[1738627373286,0.03,215.83,215.79,20.0]
[1738627373775,36.99334439,215.83,215.72,73.71304982]
[1738627374282,0.03,215.83,215.76,20.0]
[1738627374589,0.03,215.83,215.77,4.6345]
[1738627374891,0.03,215.83,215.78,13.41184853]
[1738627375775,0.03,215.83,215.82,13.41184853]
[1738627376177,0.03,215.83,215.82,33.41184853]
[1738627376880,0.03,215.83,215.82,38.04524853]
[1738627377683,0.03,215.87,215.82,38.04524853]
[1738627377864,0.03,215.87,215.82,49.62894853]
[1738627378481,0.03,215.87,215.82,123.34199835]
[1738627378660,0.03,215.87,215.86,20.0]
[1738627378862,0.03,215.87,215.86,38.04444853]
[1738627379481,0.03,215.92,215.9,20.0]
[1738627379681,0.03,215.92,215.91,13.41184853]
[1738627381063,0.03,215.92,215.91,18.04334853]
[1738627381579,0.03,216.02,215.95,13.41184853]
[1738627382983,0.03,216.02,216.01,20.0]
[1738627383559,0.03,216.02,216.01,33.41184853]
[1738627384791,0.03,216.02,215.99,73.71304982]
[1738627384792,0.03,216.02,215.96,4.6304]
[1738627384965,0.03,216.02,215.97,33.41184853]
[1738627385590,36.96334439,216.01,215.97,20.0]
[1738627386087,36.96334439,216.01,215.95,13.41184853]
[1738627386599,4.6295,216.01,215.89,4.6319]
[1738627386881,36.96334439,215.97,215.89,4.6319]
[1738627387088,36.96334439,215.97,215.91,20.0]
[1738627387290,0.03,216.02,215.92,20.0]
[1738627387590,0.03,216.02,215.97,13.41184853]
[1738627388685,0.03,216.02,216.01,13.41184853]
[1738627388883,0.0001,216.02,216.01,13.41184853]
[1738627389069,0.0001,216.02,216.01,33.41184853]
[1738627390466,0.03,216.05,216.04,20.0]
[1738627390771,0.03,216.05,216.04,24.6287]
[1738627391994,0.03,216.05,215.99,0.34592137]
[1738627392291,0.03,216.05,215.98,4.6299]
[1738627392494,36.96334439,216.03,215.93,4.6311]
[1738627392696,36.96334439,216.01,215.93,4.6311]
[1738627393068,0.86825416,216.0,215.91,4.6313]
[1738627393264,36.96334439,215.99,215.9,73.71304982]
[1738627393491,36.96334439,215.97,215.89,7.16436376]
[1738627393693,36.96334439,215.99,215.89,7.16436376]
[1738627393994,0.86832462,215.98,215.89,7.16436376]
[1738627394498,4.6302,215.97,215.89,7.16436376]
[1738627394677,0.86844953,215.96,215.88,4.6321]
[1738627394880,36.96334439,215.97,215.88,4.6321]
[1738627395188,0.86840845,215.96,215.85,13.41184853]
[1738627395495,0.86840845,215.96,215.88,20.0]
[1738627396101,0.86840845,215.96,215.81,73.71304982]
[1738627396278,4.6309,215.94,215.82,4.6334]
[1738627396595,0.86859751,215.93,215.91,0.063]
[1738627397797,7.9213,215.95,215.91,0.063]
[1738627399706,7.27725064,216.0,215.91,0.063]
[1738627399882,7.27725064,216.0,215.93,20.0]
[1738627399883,6.4089,216.0,215.93,20.0]
[1738627400203,7.27710895,216.0,215.93,20.0]
[1738627400509,36.96334439,215.98,215.91,0.063]
[1738627400681,0.86850448,215.97,215.91,0.063]
[1738627401382,36.96334439,215.98,215.91,0.063]
[1738627401584,0.86846144,215.99,215.91,0.063]
[1738627402179,36.96334439,215.96,215.91,0.063]
[1738627402382,36.96334439,215.94,215.91,0.063]
[1738627402604,0.86861597,215.93,215.91,0.063]
[1738627403282,36.96334439,215.92,215.91,0.063]
[1738627403488,37.83211419,215.92,215.91,0.063]
[1738627403687,37.83211419,215.92,215.72,7.2776]
[1738627403688,6.1881,215.91,215.75,4.6349]
[1738627403887,36.96334439,215.87,215.75,4.6349]
[1738627404093,36.96334439,215.83,215.74,0.063]
[1738627404303,0.86903125,215.82,215.74,0.063]
[1738627404498,38.51854439,215.81,215.74,0.063]
[1738627404681,6.1622,215.79,215.74,0.063]
[1738627404876,0.86921944,215.78,215.74,0.063]
[1738627405095,6.1622,215.79,215.74,0.063]
[1738627405589,0.86913903,215.78,215.74,0.063]
[1738627406211,1.5552,215.81,215.74,0.063]
[1738627406503,5.50229773,215.84,215.74,0.063]
[1738627406908,6.4436,215.85,215.74,0.063]
[1738627407303,6.4436,215.85,215.76,13.41184853]
[1738627407700,37.83224186,215.91,215.76,13.41184853]
[1738627408307,36.96334439,215.89,215.77,4.6345]
[1738627408506,0.86883064,215.88,215.77,4.6345]
[1738627409404,4.6324,215.87,215.77,4.6345]
[1738627409601,5.50128062,215.87,215.77,4.6345]
[1738627410188,36.96334439,215.85,215.75,111.75969835]
[1738627410400,0.86896889,215.84,215.75,38.04664853]
[1738627410712,0.86896889,215.84,215.74,0.063]
[1738627410907,0.86896889,215.84,215.75,13.41184853]
[1738627411101,0.86887861,215.89,215.74,16.2861]
[1738627411288,0.86887861,215.89,215.78,20.0]
[1738627412209,42.464223,215.89,215.79,4.6341]
[1738627412415,36.96334439,215.87,215.78,20.0]
[1738627412722,0.86893603,215.89,215.79,4.6341]
[1738627412881,37.83228042,215.89,215.79,4.6341]
[1738627413088,42.46428042,215.89,215.79,4.6341]
[1738627414411,37.83228042,215.89,215.79,4.6341]
[1738627414616,0.86871689,215.9,215.79,4.6341]
[1738627415322,6.5891,215.92,215.8,13.41184853]
[1738627415617,0.86871123,215.91,215.8,13.41184853]
[1738627415819,7.45774181,215.92,215.8,13.41184853]
[1738627416018,36.96334439,215.91,215.8,13.41184853]
[1738627416206,36.96334439,215.89,215.79,4.6341]
[1738627416406,4.6326,215.86,215.71,11.5893]
[1738627416614,5.50158448,215.86,215.71,11.5893]
[1738627416816,0.86898448,215.87,215.76,13.41184853]
[1738627417004,0.86883116,215.89,215.76,13.41184853]
[1738627417206,7.45783142,215.92,215.79,20.0]
[1738627417421,7.45783142,215.92,215.8,13.41184853]
[1738627417603,6.5891,215.92,215.8,13.41184853]
[1738627417799,6.5891,215.92,215.83,20.0]
[1738627418010,6.5891,215.92,215.84,13.41184853]
[1738627418419,6.5891,215.92,215.85,4.6328]
[1738627419123,10.6748,215.97,215.86,13.41184853]
[1738627419330,6.0445,215.97,215.86,13.41184853]
[1738627419500,54.35,216.02,215.96,13.41184853]
[1738627419501,0.03,216.02,215.96,13.41184853]
[1738627419702,0.03,216.05,216.03,20.0]
[1738627420323,0.03,216.05,216.04,13.41184853]
[1738627420501,0.03,216.05,216.04,18.04054853]
[1738627423244,0.03,216.05,215.94,24.1542]
[1738627423545,0.03,216.05,215.96,11.5761]
[1738627424345,0.03,216.05,215.95,4.6307]
[1738627424545,0.03,216.05,215.92,11.5782]
[1738627424754,0.03,216.05,215.97,13.41184853]